bitfinex-derivatives/quotes_ETHF0:USTF0_20250217
["timestamp","ask_amount","ask_price","bid_price","bid_amount"]
[1739823871200,0.5531,2736.0,2735.8,0.53325299]
[1739823871400,2.51048456,2736.1,2735.7,3.78609646]
[1739823871597,2.51048456,2736.1,2736.0,3.78609646]
[1739823871805,0.00548456,2736.1,2736.0,4.31983783]
[1739823872103,0.00548456,2736.1,2736.0,5.05072783]
[1739823873100,0.00548456,2736.1,2736.0,4.31983783]
[1739823873496,0.00548456,2736.1,2736.0,0.53379963]
[1739823873806,0.00548456,2736.1,2736.0,1.26468963]
[1739823874597,0.00548456,2736.1,2736.0,6.444315]
[1739823876304,0.00548456,2736.1,2736.0,0.9751165]
[1739823876609,0.73634456,2736.1,2736.0,0.9751165]
[1739823877407,0.00548456,2736.1,2736.0,0.97581691]
[1739823878707,0.73634456,2736.1,2736.0,0.97581691]
[1739823879211,0.00548456,2736.1,2736.0,0.97581691]
[1739823879500,0.00548456,2736.1,2736.0,0.9758446]
[1739823879807,0.00548456,2736.1,2736.0,6.4450431]
[1739823881202,3.2078,2736.6,2736.5,0.73075]
[1739823881402,3.2078,2736.6,2736.5,1.26508704]
[1739823881799,3.2078,2736.6,2736.5,1.70640391]
[1739823883502,0.00548456,2736.8,2736.5,0.97565391]
[1739823883702,0.00548456,2736.8,2736.7,0.7307]
[1739823883911,0.00548456,2736.8,2736.7,0.53433704]
[1739823884095,0.73615456,2736.8,2736.7,0.53433704]
[1739823884301,3.24115456,2736.8,2736.7,0.97565391]
[1739823886212,2.51048456,2736.8,2736.7,0.97565391]
[1739823886509,0.00548456,2736.8,2736.7,0.97565391]
[1739823886709,0.00548456,2736.8,2736.7,1.70635391]
[1739823887110,0.00548456,2736.8,2736.7,1.70701043]
[1739823887805,3.2078,2737.3,2737.2,0.73057]
[1739823888005,3.2078,2737.3,2737.2,1.26556356]
[1739823888610,3.93834,2737.3,2737.2,0.97631043]
[1739823889410,3.2078,2737.3,2737.2,0.97631043]
[1739823889605,3.93834,2737.3,2737.2,0.97631043]
[1739823890805,5.06174,2737.3,2737.2,0.97631043]
[1739823891110,5.06174,2737.3,2737.2,0.97681014]
[1739823891597,5.64054,2737.3,2737.2,0.97681014]
[1739823893306,5.64054,2737.3,2737.0,0.00548456]
[1739823893307,16.3788485,2737.3,2737.0,0.00548456]
[1739823893504,0.73074,2736.6,2735.9,0.5816]
[1739823893812,0.73074,2736.6,2736.4,0.73077]
[1739823893813,3.2078,2736.6,2736.4,0.73077]
[1739823894202,0.73077,2736.5,2736.1,0.73084]
[1739823894399,3.93854,2736.6,2735.9,5.3199085]
[1739823894604,3.2078,2736.6,2736.0,3.7869294]
[1739823894806,3.2078,2736.6,2736.4,0.73076]
[1739823895511,3.2078,2736.6,2736.0,3.7869294]
[1739823895512,3.2078,2736.6,2736.3,0.73079]
[1739823895710,0.73075,2736.5,2736.2,0.73083]
[1739823895903,3.93854,2736.6,2736.3,0.7308]
[1739823896413,3.2078,2736.6,2736.0,3.7869294]
[1739823896712,4.50873,2736.6,2736.3,0.73079]
[1739823897121,3.778,2736.6,2736.0,3.7869294]
[1739823897303,3.778,2736.6,2736.3,0.73079]
[1739823897507,4.50874,2736.6,2736.3,0.73079]
[1739823897814,3.778,2736.6,2736.0,3.7869294]
[1739823898410,3.778,2736.6,2736.4,0.73076]
[1739823898611,3.778,2736.6,2736.0,3.7869294]
[1739823898909,2.504,2736.8,2736.7,0.7307]
[1739823900108,2.504,2736.8,2736.0,3.7869294]
[1739823900310,0.73075,2736.6,2736.2,0.73081]
[1739823900710,3.2078,2736.7,2736.0,3.7869294]
[1739823900913,3.9385,2736.7,2736.4,0.73076]
[1739823901114,3.2078,2736.7,2736.5,0.73075]
[1739823901305,3.2078,2736.7,2736.6,0.73073]
[1739823901512,3.2078,2736.7,2736.3,3.78144484]
[1739823901816,3.2078,2736.7,2736.5,0.73074]
[1739823902016,3.2078,2736.7,2736.3,3.78144484]
[1739823902224,3.2078,2736.7,2736.6,0.73073]
[1739823903115,2.504,2736.9,2736.8,0.73065]
[1739823903322,0.73068,2736.8,2736.5,0.73073]
[1739823903515,0.73068,2736.8,2736.2,6.98924484]
[1739823903516,3.2078,2736.7,2736.2,6.98924484]
[1739823903816,3.2078,2736.7,2736.6,0.73073]
[1739823904023,3.2078,2736.7,2736.2,6.98924484]
[1739823904319,3.2078,2736.7,2736.4,0.73076]
[1739823904512,3.2078,2736.7,2736.1,0.5685]
[1739823904815,3.2078,2736.7,2736.6,0.73073]
[1739823905120,3.2078,2736.7,2736.5,0.73074]
[1739823905316,3.93851,2736.7,2736.5,0.73074]
[1739823905520,3.2078,2736.7,2736.5,0.73074]
[1739823905822,3.2078,2736.7,2736.2,3.78144484]
[1739823906005,3.2078,2736.7,2736.1,1.29934]
[1739823906208,3.9386,2736.4,2736.0,0.00548456]
[1739823906512,3.9386,2736.4,2736.2,0.73082]
[1739823906513,0.5787,2736.3,2736.2,0.73082]
[1739823907712,2.504,2736.5,2736.4,0.73078]
[1739823911419,3.2078,2736.7,2736.2,4.31064484]
[1739823911615,0.5666,2736.9,2736.5,0.73074]
[1739823911814,0.5666,2736.9,2736.2,4.31064484]
[1739823912119,0.73068,2736.8,2736.5,0.73074]
[1739823912322,3.2078,2736.8,2736.7,0.73068]
[1739823912721,3.2078,2737.1,2736.5,4.33794484]
[1739823912924,0.5567,2737.4,2737.3,0.73054]
[1739823913123,3.0607,2737.4,2736.9,2.35743]
[1739823913319,3.0607,2737.4,2736.9,0.5308]
[1739823913518,0.00548456,2737.5,2737.1,3.78144484]
[1739823913720,0.00548456,2737.5,2737.4,4.51195484]
[1739823914017,4.56e-06,2737.5,2737.4,4.51195484]
[1739823914221,3.2078,2738.4,2737.6,1.82613]
[1739823914522,3.2078,2739.3,2738.3,5.03348]
[1739823914821,3.2078,2739.3,2737.9,3.78144484]
[1739823914822,3.2078,2739.6,2738.8,3.78144484]
[1739823915024,3.93773,2739.6,2738.9,0.7301]
[1739823915224,3.2078,2739.3,2738.8,3.78144484]
[1739823915426,0.00548456,2739.5,2739.0,0.00548456]
[1739823915631,3.2078,2739.1,2739.0,0.00548456]
[1739823915918,3.2078,2739.1,2739.0,1.21989266]
[1739823916714,3.93786,2739.1,2739.0,1.21989266]
[1739823916914,3.2078,2739.1,2738.0,7.23301764]
[1739823917117,3.2078,2739.1,2738.5,0.73021]
[1739823917422,3.2078,2739.1,2738.6,0.73019]
[1739823917619,3.2078,2739.1,2738.4,0.73023]
[1739823917818,3.2078,2738.8,2738.1,5.27421764]
[1739823918020,0.73029,2738.3,2738.1,0.5442]
[1739823918221,0.73029,2738.3,2737.7,0.5352]
[1739823918222,0.73027,2738.3,2738.2,0.00548456]
[1739823918520,3.2078,2738.4,2738.2,0.00548456]
[1739823918921,10.4,2738.4,2738.2,0.00548456]
[1739823919218,3.2078,2738.3,2738.2,0.00548456]
[1739823919418,3.93807,2738.3,2738.2,0.00548456]
[1739823920921,7.93781764,2738.3,2737.3,0.5407]
[1739823921221,3.2078,2737.5,2737.3,0.5407]
[1739823922024,3.2078,2737.8,2737.3,0.5407]
[1739823922322,10.9752,2738.4,2737.3,0.5407]
[1739823922323,3.2078,2738.3,2737.5,4.73001764]
[1739823922524,1.82497,2739.4,2738.1,3.2078]
[1739823922525,3.2078,2738.7,2738.1,3.2078]
[1739823922730,3.2078,2738.7,2738.4,0.73023]
[1739823923025,3.2078,2738.7,2738.4,0.73024]
[1739823923222,3.2078,2738.7,2738.2,0.5622]
[1739823923428,3.2078,2738.7,2738.6,0.73019]
[1739823923725,3.21328456,2738.7,2738.6,0.73019]
[1739823924027,0.00548456,2738.7,2738.6,0.73019]
[1739823924229,0.00548456,2738.7,2738.5,0.73022]
[1739823924422,0.00548456,2738.7,2738.2,0.56768456]
[1739823925224,0.00548456,2738.7,2738.6,0.73019]
[1739823925723,0.00548456,2738.7,2738.6,5.46020764]
[1739823925927,0.00548456,2738.7,2738.6,11.46020764]
[1739823926115,3.23296,2739.5,2738.6,10.73001764]
[1739823926116,2.503,2739.5,2738.6,10.73001764]
[1739823926319,2.503,2739.5,2738.9,0.7301]
[1739823926525,0.72999,2739.4,2738.9,0.73009]
[1739823926720,2.503,2739.5,2738.7,3.2078]
[1739823926922,0.72999,2739.4,2738.9,0.7301]
[1739823927226,0.73547456,2739.4,2739.0,0.73008]
[1739823927423,0.73001,2739.3,2738.9,0.73011]
[1739823927725,0.73004,2739.2,2738.8,0.72902087]
[1739823927920,3.2078,2739.0,2738.2,0.56768456]
[1739823928125,3.93797,2738.7,2738.2,1.29796456]
[1739823928627,3.93797,2738.7,2738.3,1.45931174]
[1739823928823,3.2078,2738.7,2738.3,0.72904174]
[1739823929129,3.2078,2738.7,2738.4,1.1847867]
[1739823929425,3.93799,2738.7,2738.4,1.1847867]
[1739823929620,0.73027,2738.3,2738.2,0.00548456]
[1739823929821,3.93807,2738.3,2738.2,0.00548456]
[1739823930026,6.44107,2738.3,2738.2,0.00548456]
[1739823931327,0.73038,2737.9,2737.8,0.72927842]
[1739823931520,0.73042,2737.8,2737.1,7.23301764]
[1739823931722,2.503,2737.8,2737.1,4.73001764]
[1739823931931,3.2078,2737.6,2736.9,23.4528]
[1739823932132,3.2078,2737.6,2737.1,0.73059]
[1739823932326,3.93827,2737.6,2737.1,0.73059]
[1739823932522,3.94375456,2737.6,2737.1,0.73607456]
[1739823932718,3.21328456,2737.6,2737.2,0.73057]
[1739823933027,3.21328456,2737.6,2737.3,0.73054]
[1739823933223,3.21328456,2737.6,2737.3,1.91665255]
[1739823933529,3.21328456,2737.6,2737.3,1.18611255]
[1739823933732,3.21328456,2737.6,2737.4,1.18611255]
[1739823934538,0.00548456,2737.6,2737.5,1.18668713]
[1739823935035,0.00548456,2737.6,2737.5,10.39448713]
[1739823935229,3.2078,2738.3,2738.2,0.7303]
[1739823935934,3.2078,2738.3,2738.2,1.9161763]
[1739823936330,3.2078,2738.3,2738.2,1.1858763]
[1739823936837,3.93807,2738.3,2738.2,1.1858763]
[1739823937439,3.93807,2738.3,2738.2,0.45619713]
[1739823937933,0.73038,2738.0,2737.5,0.73047]
[1739823938128,2.503,2737.9,2737.5,0.73047]
[1739823938331,2.503,2737.9,2737.6,0.73045]
[1739823938737,2.503,2737.9,2737.6,1.46155494]
[1739823938936,3.23338,2737.9,2737.6,0.73110494]
[1739823939128,3.93823,2737.7,2737.6,0.73110494]
[1739823939334,3.93823,2737.7,2737.2,0.73057]
[1739823939534,3.2078,2738.4,2738.0,0.73033]
[1739823939734,3.2078,2738.4,2737.9,4.73001764]
[1739823939936,3.93806,2738.4,2737.9,5.46038764]
[1739823940140,3.93806,2738.4,2738.0,0.73034]
[1739823940340,3.2078,2738.4,2737.9,4.73001764]
[1739823940639,3.2078,2738.4,2738.2,0.7303]
[1739823940835,3.2078,2738.4,2737.9,4.73001764]
[1739823941041,5.7188,2738.4,2738.2,0.73028]
[1739823941739,5.7188,2738.4,2738.1,0.73031]
[1739823941937,0.00548456,2738.5,2738.4,0.73025]
[1739823942131,0.00548456,2738.5,2738.2,5.46030764]
[1739823942337,0.00548456,2738.5,2738.2,4.73001764]
[1739823942538,0.00548456,2738.5,2738.2,0.7303]
[1739823942738,0.00548456,2738.5,2738.0,0.73035]
[1739823942739,0.73571456,2738.5,2738.0,0.73035]
[1739823942934,0.73571456,2738.5,2738.1,0.73032]
[1739823943345,0.73571456,2738.5,2738.0,0.73034]
[1739823943739,0.73571456,2738.5,2738.1,0.73033]
[1739823943939,3.2078,2738.4,2737.9,4.73001764]
[1739823944147,3.2078,2738.4,2738.2,0.73029]
[1739823944841,3.2078,2738.4,2737.9,4.73001764]
[1739823945145,6.45706,2738.4,2737.9,4.73001764]
[1739823945342,6.45706,2738.4,2737.9,5.46038764]
[1739823945343,5.7268,2738.4,2737.9,5.46038764]
[1739823945541,6.45706,2738.4,2737.9,5.46038764]
[1739823945744,5.7268,2738.4,2737.8,1.0869]
[1739823945943,0.73028,2738.3,2737.9,0.73037]
[1739823946139,6.45706,2738.4,2737.9,0.73037]
[1739823946446,3.2078,2738.4,2737.7,7.93781764]
[1739823946652,3.2078,2738.4,2738.0,0.73034]
[1739823946854,2.519,2738.3,2738.0,0.73034]
[1739823947151,2.519,2738.3,2738.1,0.73033]
[1739823947347,2.519,2738.3,2738.2,0.7303]
[1739823947543,2.519,2738.3,2738.1,0.73031]
[1739823947840,3.93807,2738.4,2737.7,7.93781764]
[1739823948043,0.73025,2738.4,2738.0,0.73034]
[1739823948243,3.93805,2738.4,2737.7,7.93781764]
[1739823948445,3.2078,2738.4,2737.7,7.93781764]
[1739823948646,3.2078,2738.4,2737.8,1.82602]
[1739823949042,0.00548456,2738.5,2738.4,0.73025]
[1739823949842,0.00548456,2738.5,2738.2,0.531]
[1739823950246,0.00548456,2738.5,2738.4,0.73025]
[1739823950751,0.00548456,2738.5,2738.4,1.18554605]
[1739823951453,0.00548456,2738.5,2738.4,0.73025]
[1739823951747,0.00548456,2738.5,2738.4,1.18549868]
[1739823953653,0.00548456,2738.5,2738.4,0.45524868]
[1739823953951,0.00548456,2738.5,2738.4,1.18549868]
[1739823954352,0.00548456,2738.5,2738.4,0.45524868]
[1739823954556,0.73570456,2738.5,2738.4,0.45524868]
[1739823954754,3.24970456,2738.5,2738.4,0.45524868]
[1739823956559,0.00548456,2738.5,2738.4,0.45524868]
[1739823957652,0.73570456,2738.5,2738.4,0.45524868]
[1739823958952,0.00548456,2738.5,2738.4,0.45524868]
[1739823959454,0.73570456,2738.5,2738.4,0.45524868]
[1739823960051,0.00548456,2738.5,2738.4,0.45524868]
[1739823960253,0.73570456,2738.5,2738.4,0.45524868]
[1739823960753,0.00548456,2738.5,2738.4,0.45524868]
[1739823961555,0.00548456,2738.5,2738.4,1.18549868]
[1739823972167,0.73570456,2738.5,2738.4,0.45524868]
[1739823972661,0.73570456,2738.5,2738.4,1.18549868]
[1739823972866,0.73570456,2738.5,2738.4,0.45524868]
[1739823973055,0.00548456,2738.5,2738.4,1.18549868]
[1739823973262,0.00548456,2738.5,2738.4,0.45524868]
[1739823973569,3.94350456,2738.5,2738.4,0.45524868]
[1739823973768,3.21328456,2738.5,2738.4,0.45524868]
[1739823974166,3.21328456,2738.5,2738.4,1.18549868]
[1739823975372,0.00548456,2738.5,2738.4,1.18549868]
[1739823976166,0.00548456,2738.5,2738.4,0.45524868]
[1739823976363,3.21328456,2738.5,2738.4,0.45524868]
[1739823976564,3.78508456,2738.5,2738.4,0.45524868]
[1739823976959,4.51530456,2738.5,2738.4,0.45524868]
[1739823977164,5.06430456,2738.5,2738.4,0.45524868]
[1739823977370,10.33408456,2738.5,2737.4,4.51150724]
[1739823977667,3.2078,2737.9,2737.2,1.30370724]
[1739823977867,3.93828,2737.6,2737.2,2.03426724]
[1739823978173,3.93828,2737.6,2737.1,0.00548456]
[1739823978174,2.502,2737.5,2737.1,0.00548456]
[1739823978377,2.502,2737.5,2737.3,0.73053]
[1739823978571,2.502,2737.5,2737.1,0.00548456]
[1739823978870,2.502,2737.5,2737.2,0.73057]
[1739823979466,2.502,2737.5,2737.3,0.73052]
[1739823980472,2.502,2737.5,2737.2,0.73055]
[1739823980670,2.502,2737.5,2737.1,0.00548456]
[1739823980972,3.2078,2737.3,2737.2,0.73057]
[1739823981474,0.73057,2737.2,2737.1,0.00548456]
[1739823981675,1.29007,2737.2,2737.1,0.00548456]
[1739823981865,0.5595,2737.2,2737.1,0.00548456]
[1739823982270,3.93836,2737.3,2737.1,0.00548456]
[1739823982271,3.2078,2737.3,2737.1,0.00548456]
[1739823982472,2.503,2737.6,2737.1,3.21328456]
[1739823982664,2.503,2737.7,2737.6,0.73046]
[1739823982868,2.503,2737.7,2737.2,1.1388]
[1739823983269,3.2078,2737.6,2737.2,1.1388]
[1739823983472,3.2078,2737.6,2737.4,0.73049]
[1739823983677,3.2078,2737.6,2737.4,0.7305]
[1739823983873,3.2078,2737.6,2737.2,1.1388]
[1739823984082,3.2078,2737.6,2737.2,1.29686]
[1739823984271,3.7773,2737.6,2737.2,1.29686]
[1739823984471,3.7773,2737.6,2737.2,0.5663]
[1739823984671,3.7773,2737.6,2737.3,0.73054]
[1739823985069,3.2078,2737.6,2737.2,0.5663]
[1739823985378,3.2078,2737.6,2737.3,0.73053]
[1739823985578,3.2078,2737.6,2737.2,0.5663]
[1739823985980,3.2078,2738.0,2737.5,3.2078]
[1739823986285,2.507,2738.3,2738.1,0.73031]
[1739823987273,3.2078,2738.4,2738.3,0.73027]
[1739823988373,0.00118042,2738.0,2737.9,1.28268]
[1739823989276,0.00118042,2738.0,2737.9,1.73378835]
[1739823990380,0.73153042,2738.0,2737.9,0.45110835]
[1739823991084,10.40118042,2738.0,2737.9,1.18148835]
[1739823991283,0.73153042,2738.0,2737.9,0.45110835]
[1739823991486,0.00118042,2738.0,2737.9,0.45110835]
[1739823991788,0.73153042,2738.0,2737.9,0.45110835]
[1739823993177,0.00118042,2738.0,2737.9,0.45110835]
[1739823993693,0.00118042,2738.0,2737.9,1.18148835]
[1739823993984,0.00118042,2738.0,2737.9,4.38928835]
[1739823999484,0.00118042,2738.0,2737.9,1.18148835]
[1739823999988,0.73153042,2738.0,2737.9,0.45110835]
[1739824003184,0.00118042,2738.0,2737.9,0.45110835]
[1739824003586,0.73153042,2738.0,2737.9,0.45110835]
[1739824004691,0.00118042,2738.0,2737.9,0.45110835]
[1739824004987,0.73153042,2738.0,2737.9,0.45110835]
[1739824005190,0.00118042,2738.0,2737.9,0.45110835]
[1739824005680,0.73153042,2738.0,2737.9,0.45110835]
[1739824006285,0.00118042,2738.0,2737.9,0.45110835]
[1739824006688,0.73153042,2738.0,2737.9,0.45110835]
[1739824006889,0.00118042,2738.0,2737.9,0.45110835]
[1739824007085,2.50418042,2738.0,2737.9,1.18148835]
[1739824009395,2.50418042,2738.0,2737.9,0.45110835]
[1739824009987,2.50418042,2738.0,2737.9,1.18148835]
[1739824010590,3.23453042,2738.0,2737.9,0.45110835]
[1739824011986,2.50418042,2738.0,2737.9,0.45110835]
[1739824012590,3.23453042,2738.0,2737.9,0.45110835]
[1739824012797,2.50418042,2738.0,2737.9,1.18148835]
[1739824012988,2.50418042,2738.0,2737.9,0.45110835]
[1739824013292,3.23453042,2738.0,2737.9,0.45110835]
[1739824013594,2.50418042,2738.0,2737.9,1.18148835]
[1739824013797,2.50418042,2738.0,2737.9,0.45110835]
[1739824014181,3.23453042,2738.0,2737.9,0.45110835]
[1739824015293,2.50418042,2738.0,2737.9,1.18148835]
[1739824015692,2.50418042,2738.0,2737.9,0.45110835]
[1739824016091,2.50418042,2738.0,2737.9,1.18148835]
[1739824016295,3.23453042,2738.0,2737.9,1.18148835]
[1739824016495,3.23453042,2738.0,2737.9,0.45110835]
[1739824016683,2.50418042,2738.0,2737.9,1.18148835]
[1739824016889,3.23453042,2738.0,2737.9,0.45110835]
[1739824017396,0.00118042,2738.0,2737.9,1.18148835]
[1739824019086,0.00548456,2738.5,2737.9,0.45110835]
[1739824019294,0.00548456,2738.5,2738.4,0.73025]
[1739824019699,0.00548456,2738.5,2738.4,1.18135835]
[1739824020796,0.00548456,2738.5,2738.4,0.45110835]
[1739824021104,0.73570456,2738.5,2738.4,0.45110835]
[1739824021400,4.51316992,2738.5,2738.4,0.45110835]
[1739824021693,0.73037,2738.0,2737.5,1.30370724]
[1739824021897,6.44017,2738.0,2737.6,0.73044]
[1739824022096,5.7098,2738.0,2737.4,0.5719]
[1739824022288,6.44017,2738.0,2737.6,0.73045]
[1739824022495,5.7098,2738.0,2737.8,0.7304]
[1739824022694,6.44016,2738.0,2737.7,0.73043]
[1739824022888,5.7098,2738.0,2737.8,0.7304]
[1739824023201,3.7817,2738.4,2737.9,0.73038]
[1739824023390,3.2078,2738.4,2738.3,0.73027]
[1739824023596,5.7098,2738.4,2738.3,0.73027]
[1739824024099,0.00548456,2738.5,2738.4,0.73025]
[1739824025596,3.2078,2739.0,2738.9,0.73011]
[1739824026704,3.2078,2739.3,2739.2,0.73003]
[1739824026902,0.00367058,2739.2,2739.1,0.73005]
[1739824027803,0.00367058,2739.2,2738.7,4.33198456]
[1739824028005,0.00367058,2739.2,2739.1,0.73006]
[1739824033709,0.00367058,2739.2,2739.1,1.17568535]
[1739824034611,3.2078,2739.7,2739.1,0.44562535]
[1739824034806,3.2078,2739.7,2739.6,0.72993]
[1739824035311,3.2078,2739.7,2739.6,1.17555535]
[1739824036007,10.7098,2740.0,2739.8,0.72986]
[1739824036209,0.72985,2739.9,2739.6,0.44562535]
[1739824036406,0.7299,2739.7,2739.6,0.44562535]
[1739824037008,10.7088,2740.0,2739.6,1.17554535]
[1739824037209,10.7088,2740.0,2739.6,0.44562535]
[1739824037404,3.23085,2739.9,2739.6,0.44562535]
[1739824037711,2.501,2739.9,2739.7,1.17551535]
[1739824037908,2.501,2739.9,2739.8,0.44562535]
[1739824038309,3.23085,2739.9,2739.8,0.44562535]
[1739824039009,2.501,2739.9,2739.8,0.44562535]
[1739824039205,3.23085,2739.9,2739.8,0.44562535]
[1739824039511,2.501,2739.9,2739.8,0.72987]
[1739824040106,0.72988,2739.8,2739.6,0.72992]
[1739824040312,0.7299,2739.8,2739.4,1.0678]
[1739824040506,0.72987,2739.8,2739.4,1.0678]
[1739824040709,0.72988,2739.8,2739.5,0.44471685]
[1739824040906,2.501,2739.9,2739.5,0.44471685]
[1739824041112,0.72992,2739.7,2739.5,0.44471685]
[1739824041313,0.72992,2739.7,2739.6,0.44471685]
[1739824042211,0.72989,2739.8,2739.6,0.44471685]
[1739824042407,2.501,2739.9,2739.6,1.17462685]
[1739824042408,3.23086,2739.9,2739.6,1.17462685]
[1739824042608,2.501,2739.9,2739.6,0.44471685]
[1739824042806,3.23085,2739.9,2739.6,1.17462685]
[1739824043010,0.7299,2739.7,2739.6,0.44471685]
[1739824043214,3.9377,2739.7,2739.6,0.44471685]
[1739824043915,3.2078,2739.7,2739.6,0.44471685]
[1739824044120,3.9377,2739.7,2739.6,0.44471685]
[1739824044914,3.2078,2739.7,2739.6,0.44471685]
[1739824045216,3.2078,2739.7,2739.6,1.17348065]
[1739824046417,3.9377,2739.7,2739.6,0.44355065]
[1739824046621,3.2078,2739.7,2739.6,1.17348065]
[1739824046920,3.2078,2739.7,2739.6,0.44355065]
[1739824046921,3.9377,2739.7,2739.6,0.44355065]
[1739824047124,3.2078,2739.7,2739.6,1.17348065]
[1739824047516,3.9377,2739.7,2739.6,0.44355065]
[1739824050620,6.4387,2739.7,2739.6,0.44355065]
[1739824052416,6.4387,2739.7,2738.0,3.65178]
[1739824052417,0.73011,2739.0,2738.7,0.00548456]
[1739824052823,0.73012,2738.9,2738.7,0.00548456]
[1739824053212,0.7301,2739.0,2738.7,0.73564456]
[1739824054617,3.2078,2739.1,2738.7,0.00548456]
[1739824054818,3.93794,2738.8,2738.7,0.00548456]
[1739824055017,6.43894,2738.8,2738.7,0.00548456]
[1739824055720,3.2078,2739.3,2738.7,0.00548456]
[1739824056024,3.2078,2739.0,2738.7,0.00548456]
[1739824056417,0.73012,2738.9,2738.7,0.00548456]
[1739824056722,0.73014,2738.8,2738.7,0.00548456]
[1739824056926,5.6043392,2738.8,2738.7,0.00548456]
[1739824057128,0.73029,2738.3,2737.9,0.73038]
[1739824057324,6.43909,2738.3,2737.9,0.73038]
[1739824057621,0.7303,2738.2,2737.8,1.3098]
[1739824057825,0.73038,2738.0,2737.7,0.5522]
[1739824058214,0.00548456,2738.1,2737.7,0.5522]
[1739824058419,0.00548456,2738.1,2737.7,4.3247992]
[1739824058629,0.00548456,2738.1,2737.8,0.7304]
[1739824058830,0.00548456,2738.1,2737.7,4.3247992]
[1739824059324,0.00548456,2738.1,2737.9,0.73037]
[1739824059629,0.00548456,2738.1,2738.0,0.73035]
[1739824060627,3.2078,2738.3,2738.2,0.7303]
[1739824060830,2.501,2738.6,2738.5,0.73022]
[1739824061222,3.2078,2739.0,2738.3,5.5982792]
[1739824061424,3.5801,2739.3,2739.1,0.73006]
[1739824061625,2.501,2739.3,2739.0,0.73008]
[1739824062221,3.2078,2739.4,2739.0,3.7725992]
[1739824062426,3.2078,2739.4,2739.3,0.73001]
[1739824062725,2.501,2739.3,2739.2,0.73002]
[1739824063327,2.501,2739.3,2739.1,1.27072456]
[1739824064130,2.501,2739.3,2739.2,0.73003]
[1739824064324,2.501,2739.3,2739.1,0.54068456]
[1739824064633,2.501,2739.3,2739.2,0.44281806]
[1739824066030,2.501,2739.3,2739.2,1.17284806]
[1739824066434,2.501,2739.3,2739.2,0.44281806]
[1739824066931,2.501,2739.3,2739.2,1.17284806]
[1739824067329,3.2078,2739.4,2739.2,0.44281806]
[1739824067526,3.2078,2739.4,2739.3,0.73001]
[1739824068233,3.2078,2739.4,2739.3,0.44281806]
[1739824068634,3.2078,2739.4,2739.3,1.17282806]
[1739824068932,3.2078,2739.4,2739.3,0.44281806]
[1739824069523,3.93778,2739.4,2739.3,0.44281806]
[1739824071039,9.2078,2739.4,2738.5,0.532]
[1739824071233,3.2078,2738.7,2738.1,3.2078]
[1739824071428,3.2078,2738.4,2738.0,5.0312392]
[1739824071729,3.2078,2738.4,2738.0,0.5283]
[1739824071930,3.93806,2738.4,2738.0,1.25864]
[1739824072230,3.93806,2738.4,2738.0,0.5283]
[1739824072437,3.2078,2738.4,2737.9,0.00548456]
[1739824072733,2.50648456,2738.5,2737.9,0.00548456]
[1739824072734,3.93815,2738.0,2737.9,0.00548456]
[1739824072934,6.43915,2738.0,2737.9,0.00548456]
[1739824073434,5.7088,2738.0,2737.9,0.00548456]
[1739824073639,2.501,2738.0,2737.9,0.73586456]
[1739824074635,2.501,2738.0,2737.9,0.00548456]
[1739824075233,2.501,2738.0,2737.9,0.73586456]
[1739824075629,2.501,2738.0,2737.9,0.00548456]
[1739824077339,3.23135,2738.0,2737.9,0.00548456]
[1739824077536,9.0586,2738.0,2737.2,3.7725992]
[1739824077734,3.2078,2737.5,2737.2,4.5031592]
[1739824077934,5.7088,2737.5,2737.2,4.5031592]
[1739824078134,5.7088,2737.5,2737.2,3.7725992]
[1739824078335,5.7088,2737.5,2737.3,0.73054]
[1739824078734,5.7088,2737.5,2737.3,0.73052]
[1739824079038,5.7088,2737.5,2737.2,3.7725992]
[1739824079645,2.501,2737.5,2737.4,0.73051]
[1739824079833,5.7088,2737.9,2737.2,3.7725992]
[1739824080034,2.501,2738.1,2737.6,3.7725992]
[1739824080235,2.501,2738.1,2737.8,0.73039]
[1739824080433,2.501,2738.1,2737.9,0.73036]
[1739824080631,2.501,2738.1,2737.7,1.1155]
[1739824080632,3.7439,2738.2,2737.7,1.1155]
[1739824081036,0.73036,2738.0,2737.7,1.84593]
[1739824081238,3.7439,2738.2,2737.7,1.1155]
[1739824081437,3.7439,2738.2,2737.4,3.2078]
[1739824081438,3.2078,2737.9,2737.4,3.9383]
[1739824081736,5.7098,2737.9,2737.3,3.7725992]
[1739824081935,0.73042,2737.8,2737.3,4.5031192]
[1739824082144,0.73044,2737.7,2737.3,4.5031192]
[1739824082343,3.93828,2737.6,2737.2,1.29665]
[1739824082534,3.2078,2737.6,2737.2,0.5661]
[1739824082847,3.93828,2737.6,2737.2,1.29666]
[1739824083039,3.2078,2737.6,2737.2,0.5661]
[1739824083346,3.2078,2737.6,2737.3,0.73052]
[1739824083639,3.2325,2737.5,2737.2,0.5661]
[1739824083844,3.0843,2737.5,2737.4,0.44021207]
[1739824084032,3.0843,2737.5,2737.4,1.17072207]
[1739824084237,3.0843,2737.5,2737.4,0.44021207]
[1739824085646,3.0843,2737.5,2737.4,1.17072207]
[1739824085848,3.0843,2737.5,2737.4,0.44021207]
[1739824086145,3.81479,2737.5,2737.4,0.44021207]
[1739824086740,0.73056,2737.3,2737.1,0.00548456]
[1739824087046,3.2078,2737.2,2737.1,0.73607456]
[1739824087435,2.502,2737.6,2737.1,2.27177819]
[1739824087749,2.502,2737.6,2737.5,0.73049]
[1739824088137,2.502,2737.6,2737.2,4.21241283]
[1739824088337,2.502,2737.6,2737.3,0.73054]
[1739824088547,2.502,2737.6,2737.3,0.43981363]
[1739824088743,2.502,2737.6,2737.4,0.73051]
[1739824088945,2.502,2737.6,2737.4,0.43981363]
[1739824089246,2.502,2737.6,2737.5,0.73049]
[1739824089638,2.502,2737.6,2737.5,1.17030363]
[1739824089833,2.502,2737.6,2737.5,0.43981363]
[1739824090046,3.23246,2737.6,2737.5,0.43981363]
[1739824090837,3.23246,2737.6,2737.1,0.00548456]
[1739824090838,12.2745992,2737.6,2737.1,0.00548456]
[1739824091043,3.93837,2737.2,2737.1,0.00548456]